{"text_format":"1","workbook":"xlsx","n_sheets":3,"sheets":["Sheet1","Sheet2","Sheet3"],"not_rendered":{"charts":0,"images":0,"macros":1,"external_links":0,"defined_names":0,"comments":0,"pivot_tables":0},"unopened":[],"bounds":{"document_bytes":16777216,"sheet_cells":100000,"rows_first":2000,"rows_last":500,"rows_between":2000,"halvings":0,"cell_chars":16384,"cell_head_chars":4096},"cells_cut":0,"cells_raw":0,"read":"whole","date_system":"1900"}

{"sheet":"Sheet1","index":0,"n_rows":1001,"n_cols":6,"rows_kept":1001,"cut":false,"hidden":false,"merged":[]}
[1,{"$f":"Orde_too_large(A1)","v":"واحد"},null," =Orde_too_large(A1)",935,{"$f":"Orde_too_large(E1)","v":"تسعمائة وخمس وثلاثون"}]
[2,{"$f":"Orde_too_large(A2)","v":"اثنان"},null,null,6877,{"$f":"Orde_too_large(E2)","v":"ستة آلاف و ثمانمائة وسبع وسبعون"}]
[3,"ثلاث",null,null,5627,"خمسة آلاف و ستمائة وسبع وعشرون"]
[4,"أربع",null,null,5451,"خمسة آلاف و أربعمائة وإحدى وخمسون"]
[5,"خمس",null,null,8136,"ثمانية آلاف و مائة وست وثلاثون"]
[6,"ست",null,null,625,"ستمائة وخمس وعشرون"]
[7,"سبع",null,null,7233,"سبعة آلاف و مائتين وثلاث وثلاثون"]
[8,"ثمان",null,null,2480,"ألفان و أربعمائة وثمانون"]
[9,"تسع",null,null,6683,"ستة آلاف و ستمائة وثلاث وثمانون"]
[10,"عشرة",null,null,9542,"تسعة آلاف و خمسمائة واثنان وأربعون"]
[11,"إحدى عشر",null,null,9595,"تسعة آلاف و خمسمائة وخمس وتسعون"]
[12,"اثنان عشر",null,null,9518,"تسعة آلاف و خمسمائة وثمان عشر"]
[13,"ثلاث عشر"]
[14,"أربع عشر"]
[15,"خمس عشر"]
[16,"ست عشر"]
[17,"سبع عشر"]
[18,"ثمان عشر"]
[19,"تسع عشر"]
[20,"عشرون"]
[21,"إحدى وعشرون"]
[22,"اثنان وعشرون"]
[23,"ثلاث وعشرون"]
[24,"أربع وعشرون"]
[25,"خمس وعشرون"]
[26,"ست وعشرون"]
[27,"سبع وعشرون"]
[28,"ثمان وعشرون"]
[29,"تسع وعشرون"]
[30,"ثلاثون"]
[31,"إحدى وثلاثون"]
[32,"اثنان وثلاثون"]
[33,"ثلاث وثلاثون"]
[34,"أربع وثلاثون"]
[35,"خمس وثلاثون"]
[36,"ست وثلاثون"]
[37,"سبع وثلاثون"]
[38,"ثمان وثلاثون"]
[39,"تسع وثلاثون"]
[40,"أربعون"]
[41,"إحدى وأربعون"]
[42,"اثنان وأربعون"]
[43,"ثلاث وأربعون"]
[44,"أربع وأربعون"]
[45,"خمس وأربعون"]
[46,"ست وأربعون"]
[47,"سبع وأربعون"]
[48,"ثمان وأربعون"]
[49,"تسع وأربعون"]
[50,"خمسون"]
[51,"إحدى وخمسون"]
[52,"اثنان وخمسون"]
[53,"ثلاث وخمسون"]
[54,"أربع وخمسون"]
[55,"خمس وخمسون"]
[56,"ست وخمسون"]
[57,"سبع وخمسون"]
[58,"ثمان وخمسون"]
[59,"تسع وخمسون"]
[60,"ستون"]
[61,"إحدى وستون"]
[62,"اثنان وستون"]
[63,"ثلاث وستون"]
[64,"أربع وستون"]
[65,"خمس وستون"]
[66,{"$f":"Orde_too_large(A66)","v":"ست وستون"}]
[67,"سبع وستون"]
[68,"ثمان وستون"]
[69,"تسع وستون"]
[70,"سبعون"]
[71,"إحدى وسبعون"]
[72,"اثنان وسبعون"]
[73,"ثلاث وسبعون"]
[74,"أربع وسبعون"]
[75,"خمس وسبعون"]
[76,"ست وسبعون"]
[77,"سبع وسبعون"]
[78,"ثمان وسبعون"]
[79,"تسع وسبعون"]
[80,"ثمانون"]
[81,"إحدى وثمانون"]
[82,"اثنان وثمانون"]
[83,"ثلاث وثمانون"]
[84,"أربع وثمانون"]
[85,"خمس وثمانون"]
[86,"ست وثمانون"]
[87,"سبع وثمانون"]
[88,"ثمان وثمانون"]
[89,"تسع وثمانون"]
[90,"تسعون"]
[91,"إحدى وتسعون"]
[92,"اثنان وتسعون"]
[93,"ثلاث وتسعون"]
[94,"أربع وتسعون"]
[95,"خمس وتسعون"]
[96,"ست وتسعون"]
[97,"سبع وتسعون"]
[98,"ثمان وتسعون"]
[99,"تسع وتسعون"]
[100,"مائة "]
[101,"مائة  وواحد"]
[102,"مائة واثنين"]
[103,"مائة وثلاثة"]
[104,"مائة وأربعة"]
[105,"مائة وخمسة"]
[106,"مائة وستة"]
[107,"مائة وسبعة"]
[108,"مائة وثمانية"]
[109,"مائة وتسعة"]
[110,"مائة وعشرة"]
[111,"مائة وإحدى عشر"]
[112,"مائة واثنان عشر"]
[113,"مائة وثلاث عشر"]
[114,"مائة وأربع عشر"]
[115,"مائة وخمس عشر"]
[116,"مائة وست عشر"]
[117,"مائة وسبع عشر"]
[118,"مائة وثمان عشر"]
[119,"مائة وتسع عشر"]
[120,"مائة وعشرون"]
[121,"مائة وإحدى وعشرون"]
[122,"مائة واثنان وعشرون"]
[123,"مائة وثلاث وعشرون"]
[124,"مائة وأربع وعشرون"]
[125,"مائة وخمس وعشرون"]
[126,"مائة وست وعشرون"]
[127,"مائة وسبع وعشرون"]
[128,"مائة وثمان وعشرون"]
[129,"مائة وتسع وعشرون"]
[130,{"$f":"Orde_too_large(A130)","v":"مائة وثلاثون"}]
[131,"مائة وإحدى وثلاثون"]
[132,"مائة واثنان وثلاثون"]
[133,"مائة وثلاث وثلاثون"]
[134,"مائة وأربع وثلاثون"]
[135,"مائة وخمس وثلاثون"]
[136,"مائة وست وثلاثون"]
[137,"مائة وسبع وثلاثون"]
[138,"مائة وثمان وثلاثون"]
[139,"مائة وتسع وثلاثون"]
[140,"مائة وأربعون"]
[141,"مائة وإحدى وأربعون"]
[142,"مائة واثنان وأربعون"]
[143,"مائة وثلاث وأربعون"]
[144,"مائة وأربع وأربعون"]
[145,"مائة وخمس وأربعون"]
[146,"مائة وست وأربعون"]
[147,"مائة وسبع وأربعون"]
[148,"مائة وثمان وأربعون"]
[149,"مائة وتسع وأربعون"]
[150,"مائة وخمسون"]
[151,"مائة وإحدى وخمسون"]
[152,"مائة واثنان وخمسون"]
[153,"مائة وثلاث وخمسون"]
[154,"مائة وأربع وخمسون"]
[155,"مائة وخمس وخمسون"]
[156,"مائة وست وخمسون"]
[157,"مائة وسبع وخمسون"]
[158,"مائة وثمان وخمسون"]
[159,"مائة وتسع وخمسون"]
[160,"مائة وستون"]
[161,"مائة وإحدى وستون"]
[162,"مائة واثنان وستون"]
[163,"مائة وثلاث وستون"]
[164,"مائة وأربع وستون"]
[165,"مائة وخمس وستون"]
[166,"مائة وست وستون"]
[167,"مائة وسبع وستون"]
[168,"مائة وثمان وستون"]
[169,"مائة وتسع وستون"]
[170,"مائة وسبعون"]
[171,"مائة وإحدى وسبعون"]
[172,"مائة واثنان وسبعون"]
[173,"مائة وثلاث وسبعون"]
[174,"مائة وأربع وسبعون"]
[175,"مائة وخمس وسبعون"]
[176,"مائة وست وسبعون"]
[177,"مائة وسبع وسبعون"]
[178,"مائة وثمان وسبعون"]
[179,"مائة وتسع وسبعون"]
[180,"مائة وثمانون"]
[181,"مائة وإحدى وثمانون"]
[182,"مائة واثنان وثمانون"]
[183,"مائة وثلاث وثمانون"]
[184,"مائة وأربع وثمانون"]
[185,"مائة وخمس وثمانون"]
[186,"مائة وست وثمانون"]
[187,"مائة وسبع وثمانون"]
[188,"مائة وثمان وثمانون"]
[189,"مائة وتسع وثمانون"]
[190,"مائة وتسعون"]
[191,"مائة وإحدى وتسعون"]
[192,"مائة واثنان وتسعون"]
[193,"مائة وثلاث وتسعون"]
[194,{"$f":"Orde_too_large(A194)","v":"مائة وأربع وتسعون"}]
[195,"مائة وخمس وتسعون"]
[196,"مائة وست وتسعون"]
[197,"مائة وسبع وتسعون"]
[198,"مائة وثمان وتسعون"]
[199,"مائة وتسع وتسعون"]
[200,"مائتين "]
[201,"مائتين  وواحد"]
[202,"مائتين واثنين"]
[203,"مائتين وثلاثة"]
[204,"مائتين وأربعة"]
[205,"مائتين وخمسة"]
[206,"مائتين وستة"]
[207,"مائتين وسبعة"]
[208,"مائتين وثمانية"]
[209,"مائتين وتسعة"]
[210,"مائتين وعشرة"]
[211,"مائتين وإحدى عشر"]
[212,"مائتين واثنان عشر"]
[213,"مائتين وثلاث عشر"]
[214,"مائتين وأربع عشر"]
[215,"مائتين وخمس عشر"]
[216,"مائتين وست عشر"]
[217,"مائتين وسبع عشر"]
[218,"مائتين وثمان عشر"]
[219,"مائتين وتسع عشر"]
[220,"مائتين وعشرون"]
[221,"مائتين وإحدى وعشرون"]
[222,"مائتين واثنان وعشرون"]
[223,"مائتين وثلاث وعشرون"]
[224,"مائتين وأربع وعشرون"]
[225,"مائتين وخمس وعشرون"]
[226,"مائتين وست وعشرون"]
[227,"مائتين وسبع وعشرون"]
[228,"مائتين وثمان وعشرون"]
[229,"مائتين وتسع وعشرون"]
[230,"مائتين وثلاثون"]
[231,"مائتين وإحدى وثلاثون"]
[232,"مائتين واثنان وثلاثون"]
[233,"مائتين وثلاث وثلاثون"]
[234,"مائتين وأربع وثلاثون"]
[235,"مائتين وخمس وثلاثون"]
[236,"مائتين وست وثلاثون"]
[237,"مائتين وسبع وثلاثون"]
[238,"مائتين وثمان وثلاثون"]
[239,"مائتين وتسع وثلاثون"]
[240,"مائتين وأربعون"]
[241,"مائتين وإحدى وأربعون"]
[242,"مائتين واثنان وأربعون"]
[243,"مائتين وثلاث وأربعون"]
[244,"مائتين وأربع وأربعون"]
[245,"مائتين وخمس وأربعون"]
[246,"مائتين وست وأربعون"]
[247,"مائتين وسبع وأربعون"]
[248,"مائتين وثمان وأربعون"]
[249,"مائتين وتسع وأربعون"]
[250,"مائتين وخمسون"]
[251,"مائتين وإحدى وخمسون"]
[252,"مائتين واثنان وخمسون"]
[253,"مائتين وثلاث وخمسون"]
[254,"مائتين وأربع وخمسون"]
[255,"مائتين وخمس وخمسون"]
[256,"مائتين وست وخمسون"]
[257,"مائتين وسبع وخمسون"]
[258,{"$f":"Orde_too_large(A258)","v":"مائتين وثمان وخمسون"}]
[259,"مائتين وتسع وخمسون"]
[260,"مائتين وستون"]
[261,"مائتين وإحدى وستون"]
[262,"مائتين واثنان وستون"]
[263,"مائتين وثلاث وستون"]
[264,"مائتين وأربع وستون"]
[265,"مائتين وخمس وستون"]
[266,"مائتين وست وستون"]
[267,"مائتين وسبع وستون"]
[268,"مائتين وثمان وستون"]
[269,"مائتين وتسع وستون"]
[270,"مائتين وسبعون"]
[271,"مائتين وإحدى وسبعون"]
[272,"مائتين واثنان وسبعون"]
[273,"مائتين وثلاث وسبعون"]
[274,"مائتين وأربع وسبعون"]
[275,"مائتين وخمس وسبعون"]
[276,"مائتين وست وسبعون"]
[277,"مائتين وسبع وسبعون"]
[278,"مائتين وثمان وسبعون"]
[279,"مائتين وتسع وسبعون"]
[280,"مائتين وثمانون"]
[281,"مائتين وإحدى وثمانون"]
[282,"مائتين واثنان وثمانون"]
[283,"مائتين وثلاث وثمانون"]
[284,"مائتين وأربع وثمانون"]
[285,"مائتين وخمس وثمانون"]
[286,"مائتين وست وثمانون"]
[287,"مائتين وسبع وثمانون"]
[288,"مائتين وثمان وثمانون"]
[289,"مائتين وتسع وثمانون"]
[290,"مائتين وتسعون"]
[291,"مائتين وإحدى وتسعون"]
[292,"مائتين واثنان وتسعون"]
[293,"مائتين وثلاث وتسعون"]
[294,"مائتين وأربع وتسعون"]
[295,"مائتين وخمس وتسعون"]
[296,"مائتين وست وتسعون"]
[297,"مائتين وسبع وتسعون"]
[298,"مائتين وثمان وتسعون"]
[299,"مائتين وتسع وتسعون"]
[300,"ثلاثمائة "]
[301,"ثلاثمائة  وواحد"]
[302,"ثلاثمائة واثنين"]
[303,"ثلاثمائة وثلاثة"]
[304,"ثلاثمائة وأربعة"]
[305,"ثلاثمائة وخمسة"]
[306,"ثلاثمائة وستة"]
[307,"ثلاثمائة وسبعة"]
[308,"ثلاثمائة وثمانية"]
[309,"ثلاثمائة وتسعة"]
[310,"ثلاثمائة وعشرة"]
[311,"ثلاثمائة وإحدى عشر"]
[312,"ثلاثمائة واثنان عشر"]
[313,"ثلاثمائة وثلاث عشر"]
[314,"ثلاثمائة وأربع عشر"]
[315,"ثلاثمائة وخمس عشر"]
[316,"ثلاثمائة وست عشر"]
[317,"ثلاثمائة وسبع عشر"]
[318,"ثلاثمائة وثمان عشر"]
[319,"ثلاثمائة وتسع عشر"]
[320,"ثلاثمائة وعشرون"]
[321,"ثلاثمائة وإحدى وعشرون"]
[322,{"$f":"Orde_too_large(A322)","v":"ثلاثمائة واثنان وعشرون"}]
[323,"ثلاثمائة وثلاث وعشرون"]
[324,"ثلاثمائة وأربع وعشرون"]
[325,"ثلاثمائة وخمس وعشرون"]
[326,"ثلاثمائة وست وعشرون"]
[327,"ثلاثمائة وسبع وعشرون"]
[328,"ثلاثمائة وثمان وعشرون"]
[329,"ثلاثمائة وتسع وعشرون"]
[330,"ثلاثمائة وثلاثون"]
[331,"ثلاثمائة وإحدى وثلاثون"]
[332,"ثلاثمائة واثنان وثلاثون"]
[333,"ثلاثمائة وثلاث وثلاثون"]
[334,"ثلاثمائة وأربع وثلاثون"]
[335,"ثلاثمائة وخمس وثلاثون"]
[336,"ثلاثمائة وست وثلاثون"]
[337,"ثلاثمائة وسبع وثلاثون"]
[338,"ثلاثمائة وثمان وثلاثون"]
[339,"ثلاثمائة وتسع وثلاثون"]
[340,"ثلاثمائة وأربعون"]
[341,"ثلاثمائة وإحدى وأربعون"]
[342,"ثلاثمائة واثنان وأربعون"]
[343,"ثلاثمائة وثلاث وأربعون"]
[344,"ثلاثمائة وأربع وأربعون"]
[345,"ثلاثمائة وخمس وأربعون"]
[346,"ثلاثمائة وست وأربعون"]
[347,"ثلاثمائة وسبع وأربعون"]
[348,"ثلاثمائة وثمان وأربعون"]
[349,"ثلاثمائة وتسع وأربعون"]
[350,"ثلاثمائة وخمسون"]
[351,"ثلاثمائة وإحدى وخمسون"]
[352,"ثلاثمائة واثنان وخمسون"]
[353,"ثلاثمائة وثلاث وخمسون"]
[354,"ثلاثمائة وأربع وخمسون"]
[355,"ثلاثمائة وخمس وخمسون"]
[356,"ثلاثمائة وست وخمسون"]
[357,"ثلاثمائة وسبع وخمسون"]
[358,"ثلاثمائة وثمان وخمسون"]
[359,"ثلاثمائة وتسع وخمسون"]
[360,"ثلاثمائة وستون"]
[361,"ثلاثمائة وإحدى وستون"]
[362,"ثلاثمائة واثنان وستون"]
[363,"ثلاثمائة وثلاث وستون"]
[364,"ثلاثمائة وأربع وستون"]
[365,"ثلاثمائة وخمس وستون"]
[366,"ثلاثمائة وست وستون"]
[367,"ثلاثمائة وسبع وستون"]
[368,"ثلاثمائة وثمان وستون"]
[369,"ثلاثمائة وتسع وستون"]
[370,"ثلاثمائة وسبعون"]
[371,"ثلاثمائة وإحدى وسبعون"]
[372,"ثلاثمائة واثنان وسبعون"]
[373,"ثلاثمائة وثلاث وسبعون"]
[374,"ثلاثمائة وأربع وسبعون"]
[375,"ثلاثمائة وخمس وسبعون"]
[376,"ثلاثمائة وست وسبعون"]
[377,"ثلاثمائة وسبع وسبعون"]
[378,"ثلاثمائة وثمان وسبعون"]
[379,"ثلاثمائة وتسع وسبعون"]
[380,"ثلاثمائة وثمانون"]
[381,"ثلاثمائة وإحدى وثمانون"]
[382,"ثلاثمائة واثنان وثمانون"]
[383,"ثلاثمائة وثلاث وثمانون"]
[384,"ثلاثمائة وأربع وثمانون"]
[385,"ثلاثمائة وخمس وثمانون"]
[386,{"$f":"Orde_too_large(A386)","v":"ثلاثمائة وست وثمانون"}]
[387,"ثلاثمائة وسبع وثمانون"]
[388,"ثلاثمائة وثمان وثمانون"]
[389,"ثلاثمائة وتسع وثمانون"]
[390,"ثلاثمائة وتسعون"]
[391,"ثلاثمائة وإحدى وتسعون"]
[392,"ثلاثمائة واثنان وتسعون"]
[393,"ثلاثمائة وثلاث وتسعون"]
[394,"ثلاثمائة وأربع وتسعون"]
[395,"ثلاثمائة وخمس وتسعون"]
[396,"ثلاثمائة وست وتسعون"]
[397,"ثلاثمائة وسبع وتسعون"]
[398,"ثلاثمائة وثمان وتسعون"]
[399,"ثلاثمائة وتسع وتسعون"]
[400,"أربعمائة "]
[401,"أربعمائة  وواحد"]
[402,"أربعمائة واثنين"]
[403,"أربعمائة وثلاثة"]
[404,"أربعمائة وأربعة"]
[405,"أربعمائة وخمسة"]
[406,"أربعمائة وستة"]
[407,"أربعمائة وسبعة"]
[408,"أربعمائة وثمانية"]
[409,"أربعمائة وتسعة"]
[410,"أربعمائة وعشرة"]
[411,"أربعمائة وإحدى عشر"]
[412,"أربعمائة واثنان عشر"]
[413,"أربعمائة وثلاث عشر"]
[414,"أربعمائة وأربع عشر"]
[415,"أربعمائة وخمس عشر"]
[416,"أربعمائة وست عشر"]
[417,"أربعمائة وسبع عشر"]
[418,"أربعمائة وثمان عشر"]
[419,"أربعمائة وتسع عشر"]
[420,"أربعمائة وعشرون"]
[421,"أربعمائة وإحدى وعشرون"]
[422,"أربعمائة واثنان وعشرون"]
[423,"أربعمائة وثلاث وعشرون"]
[424,"أربعمائة وأربع وعشرون"]
[425,"أربعمائة وخمس وعشرون"]
[426,"أربعمائة وست وعشرون"]
[427,"أربعمائة وسبع وعشرون"]
[428,"أربعمائة وثمان وعشرون"]
[429,"أربعمائة وتسع وعشرون"]
[430,"أربعمائة وثلاثون"]
[431,"أربعمائة وإحدى وثلاثون"]
[432,"أربعمائة واثنان وثلاثون"]
[433,"أربعمائة وثلاث وثلاثون"]
[434,"أربعمائة وأربع وثلاثون"]
[435,"أربعمائة وخمس وثلاثون"]
[436,"أربعمائة وست وثلاثون"]
[437,"أربعمائة وسبع وثلاثون"]
[438,"أربعمائة وثمان وثلاثون"]
[439,"أربعمائة وتسع وثلاثون"]
[440,"أربعمائة وأربعون"]
[441,"أربعمائة وإحدى وأربعون"]
[442,"أربعمائة واثنان وأربعون"]
[443,"أربعمائة وثلاث وأربعون"]
[444,"أربعمائة وأربع وأربعون"]
[445,"أربعمائة وخمس وأربعون"]
[446,"أربعمائة وست وأربعون"]
[447,"أربعمائة وسبع وأربعون"]
[448,"أربعمائة وثمان وأربعون"]
[449,"أربعمائة وتسع وأربعون"]
[450,{"$f":"Orde_too_large(A450)","v":"أربعمائة وخمسون"}]
[451,"أربعمائة وإحدى وخمسون"]
[452,"أربعمائة واثنان وخمسون"]
[453,"أربعمائة وثلاث وخمسون"]
[454,"أربعمائة وأربع وخمسون"]
[455,"أربعمائة وخمس وخمسون"]
[456,"أربعمائة وست وخمسون"]
[457,"أربعمائة وسبع وخمسون"]
[458,"أربعمائة وثمان وخمسون"]
[459,"أربعمائة وتسع وخمسون"]
[460,"أربعمائة وستون"]
[461,"أربعمائة وإحدى وستون"]
[462,"أربعمائة واثنان وستون"]
[463,"أربعمائة وثلاث وستون"]
[464,"أربعمائة وأربع وستون"]
[465,"أربعمائة وخمس وستون"]
[466,"أربعمائة وست وستون"]
[467,"أربعمائة وسبع وستون"]
[468,"أربعمائة وثمان وستون"]
[469,"أربعمائة وتسع وستون"]
[470,"أربعمائة وسبعون"]
[471,"أربعمائة وإحدى وسبعون"]
[472,"أربعمائة واثنان وسبعون"]
[473,"أربعمائة وثلاث وسبعون"]
[474,"أربعمائة وأربع وسبعون"]
[475,"أربعمائة وخمس وسبعون"]
[476,"أربعمائة وست وسبعون"]
[477,"أربعمائة وسبع وسبعون"]
[478,"أربعمائة وثمان وسبعون"]
[479,"أربعمائة وتسع وسبعون"]
[480,"أربعمائة وثمانون"]
[481,"أربعمائة وإحدى وثمانون"]
[482,"أربعمائة واثنان وثمانون"]
[483,"أربعمائة وثلاث وثمانون"]
[484,"أربعمائة وأربع وثمانون"]
[485,"أربعمائة وخمس وثمانون"]
[486,"أربعمائة وست وثمانون"]
[487,"أربعمائة وسبع وثمانون"]
[488,"أربعمائة وثمان وثمانون"]
[489,"أربعمائة وتسع وثمانون"]
[490,"أربعمائة وتسعون"]
[491,"أربعمائة وإحدى وتسعون"]
[492,"أربعمائة واثنان وتسعون"]
[493,"أربعمائة وثلاث وتسعون"]
[494,"أربعمائة وأربع وتسعون"]
[495,"أربعمائة وخمس وتسعون"]
[496,"أربعمائة وست وتسعون"]
[497,"أربعمائة وسبع وتسعون"]
[498,"أربعمائة وثمان وتسعون"]
[499,"أربعمائة وتسع وتسعون"]
[500,"خمسمائة "]
[501,"خمسمائة  وواحد"]
[502,"خمسمائة واثنين"]
[503,"خمسمائة وثلاثة"]
[504,"خمسمائة وأربعة"]
[505,"خمسمائة وخمسة"]
[506,"خمسمائة وستة"]
[507,"خمسمائة وسبعة"]
[508,"خمسمائة وثمانية"]
[509,"خمسمائة وتسعة"]
[510,"خمسمائة وعشرة"]
[511,"خمسمائة وإحدى عشر"]
[512,"خمسمائة واثنان عشر"]
[513,"خمسمائة وثلاث عشر"]
[514,{"$f":"Orde_too_large(A514)","v":"خمسمائة وأربع عشر"}]
[515,"خمسمائة وخمس عشر"]
[516,"خمسمائة وست عشر"]
[517,"خمسمائة وسبع عشر"]
[518,"خمسمائة وثمان عشر"]
[519,"خمسمائة وتسع عشر"]
[520,"خمسمائة وعشرون"]
[521,"خمسمائة وإحدى وعشرون"]
[522,"خمسمائة واثنان وعشرون"]
[523,"خمسمائة وثلاث وعشرون"]
[524,"خمسمائة وأربع وعشرون"]
[525,"خمسمائة وخمس وعشرون"]
[526,"خمسمائة وست وعشرون"]
[527,"خمسمائة وسبع وعشرون"]
[528,"خمسمائة وثمان وعشرون"]
[529,"خمسمائة وتسع وعشرون"]
[530,"خمسمائة وثلاثون"]
[531,"خمسمائة وإحدى وثلاثون"]
[532,"خمسمائة واثنان وثلاثون"]
[533,"خمسمائة وثلاث وثلاثون"]
[534,"خمسمائة وأربع وثلاثون"]
[535,"خمسمائة وخمس وثلاثون"]
[536,"خمسمائة وست وثلاثون"]
[537,"خمسمائة وسبع وثلاثون"]
[538,"خمسمائة وثمان وثلاثون"]
[539,"خمسمائة وتسع وثلاثون"]
[540,"خمسمائة وأربعون"]
[541,"خمسمائة وإحدى وأربعون"]
[542,"خمسمائة واثنان وأربعون"]
[543,"خمسمائة وثلاث وأربعون"]
[544,"خمسمائة وأربع وأربعون"]
[545,"خمسمائة وخمس وأربعون"]
[546,"خمسمائة وست وأربعون"]
[547,"خمسمائة وسبع وأربعون"]
[548,"خمسمائة وثمان وأربعون"]
[549,"خمسمائة وتسع وأربعون"]
[550,"خمسمائة وخمسون"]
[551,"خمسمائة وإحدى وخمسون"]
[552,"خمسمائة واثنان وخمسون"]
[553,"خمسمائة وثلاث وخمسون"]
[554,"خمسمائة وأربع وخمسون"]
[555,"خمسمائة وخمس وخمسون"]
[556,"خمسمائة وست وخمسون"]
[557,"خمسمائة وسبع وخمسون"]
[558,"خمسمائة وثمان وخمسون"]
[559,"خمسمائة وتسع وخمسون"]
[560,"خمسمائة وستون"]
[561,"خمسمائة وإحدى وستون"]
[562,"خمسمائة واثنان وستون"]
[563,"خمسمائة وثلاث وستون"]
[564,"خمسمائة وأربع وستون"]
[565,"خمسمائة وخمس وستون"]
[566,"خمسمائة وست وستون"]
[567,"خمسمائة وسبع وستون"]
[568,"خمسمائة وثمان وستون"]
[569,"خمسمائة وتسع وستون"]
[570,"خمسمائة وسبعون"]
[571,"خمسمائة وإحدى وسبعون"]
[572,"خمسمائة واثنان وسبعون"]
[573,"خمسمائة وثلاث وسبعون"]
[574,"خمسمائة وأربع وسبعون"]
[575,"خمسمائة وخمس وسبعون"]
[576,"خمسمائة وست وسبعون"]
[577,"خمسمائة وسبع وسبعون"]
[578,{"$f":"Orde_too_large(A578)","v":"خمسمائة وثمان وسبعون"}]
[579,"خمسمائة وتسع وسبعون"]
[580,"خمسمائة وثمانون"]
[581,"خمسمائة وإحدى وثمانون"]
[582,"خمسمائة واثنان وثمانون"]
[583,"خمسمائة وثلاث وثمانون"]
[584,"خمسمائة وأربع وثمانون"]
[585,"خمسمائة وخمس وثمانون"]
[586,"خمسمائة وست وثمانون"]
[587,"خمسمائة وسبع وثمانون"]
[588,"خمسمائة وثمان وثمانون"]
[589,"خمسمائة وتسع وثمانون"]
[590,"خمسمائة وتسعون"]
[591,"خمسمائة وإحدى وتسعون"]
[592,"خمسمائة واثنان وتسعون"]
[593,"خمسمائة وثلاث وتسعون"]
[594,"خمسمائة وأربع وتسعون"]
[595,"خمسمائة وخمس وتسعون"]
[596,"خمسمائة وست وتسعون"]
[597,"خمسمائة وسبع وتسعون"]
[598,"خمسمائة وثمان وتسعون"]
[599,"خمسمائة وتسع وتسعون"]
[600,"ستمائة "]
[601,"ستمائة  وواحد"]
[602,"ستمائة واثنين"]
[603,"ستمائة وثلاثة"]
[604,"ستمائة وأربعة"]
[605,"ستمائة وخمسة"]
[606,"ستمائة وستة"]
[607,"ستمائة وسبعة"]
[608,"ستمائة وثمانية"]
[609,"ستمائة وتسعة"]
[610,"ستمائة وعشرة"]
[611,"ستمائة وإحدى عشر"]
[612,"ستمائة واثنان عشر"]
[613,"ستمائة وثلاث عشر"]
[614,"ستمائة وأربع عشر"]
[615,"ستمائة وخمس عشر"]
[616,"ستمائة وست عشر"]
[617,"ستمائة وسبع عشر"]
[618,"ستمائة وثمان عشر"]
[619,"ستمائة وتسع عشر"]
[620,"ستمائة وعشرون"]
[621,"ستمائة وإحدى وعشرون"]
[622,"ستمائة واثنان وعشرون"]
[623,"ستمائة وثلاث وعشرون"]
[624,"ستمائة وأربع وعشرون"]
[625,"ستمائة وخمس وعشرون"]
[626,"ستمائة وست وعشرون"]
[627,"ستمائة وسبع وعشرون"]
[628,"ستمائة وثمان وعشرون"]
[629,"ستمائة وتسع وعشرون"]
[630,"ستمائة وثلاثون"]
[631,"ستمائة وإحدى وثلاثون"]
[632,"ستمائة واثنان وثلاثون"]
[633,"ستمائة وثلاث وثلاثون"]
[634,"ستمائة وأربع وثلاثون"]
[635,"ستمائة وخمس وثلاثون"]
[636,"ستمائة وست وثلاثون"]
[637,"ستمائة وسبع وثلاثون"]
[638,"ستمائة وثمان وثلاثون"]
[639,"ستمائة وتسع وثلاثون"]
[640,"ستمائة وأربعون"]
[641,"ستمائة وإحدى وأربعون"]
[642,{"$f":"Orde_too_large(A642)","v":"ستمائة واثنان وأربعون"}]
[643,"ستمائة وثلاث وأربعون"]
[644,"ستمائة وأربع وأربعون"]
[645,"ستمائة وخمس وأربعون"]
[646,"ستمائة وست وأربعون"]
[647,"ستمائة وسبع وأربعون"]
[648,"ستمائة وثمان وأربعون"]
[649,"ستمائة وتسع وأربعون"]
[650,"ستمائة وخمسون"]
[651,"ستمائة وإحدى وخمسون"]
[652,"ستمائة واثنان وخمسون"]
[653,"ستمائة وثلاث وخمسون"]
[654,"ستمائة وأربع وخمسون"]
[655,"ستمائة وخمس وخمسون"]
[656,"ستمائة وست وخمسون"]
[657,"ستمائة وسبع وخمسون"]
[658,"ستمائة وثمان وخمسون"]
[659,"ستمائة وتسع وخمسون"]
[660,"ستمائة وستون"]
[661,"ستمائة وإحدى وستون"]
[662,"ستمائة واثنان وستون"]
[663,"ستمائة وثلاث وستون"]
[664,"ستمائة وأربع وستون"]
[665,"ستمائة وخمس وستون"]
[666,"ستمائة وست وستون"]
[667,"ستمائة وسبع وستون"]
[668,"ستمائة وثمان وستون"]
[669,"ستمائة وتسع وستون"]
[670,"ستمائة وسبعون"]
[671,"ستمائة وإحدى وسبعون"]
[672,"ستمائة واثنان وسبعون"]
[673,"ستمائة وثلاث وسبعون"]
[674,"ستمائة وأربع وسبعون"]
[675,"ستمائة وخمس وسبعون"]
[676,"ستمائة وست وسبعون"]
[677,"ستمائة وسبع وسبعون"]
[678,"ستمائة وثمان وسبعون"]
[679,"ستمائة وتسع وسبعون"]
[680,"ستمائة وثمانون"]
[681,"ستمائة وإحدى وثمانون"]
[682,"ستمائة واثنان وثمانون"]
[683,"ستمائة وثلاث وثمانون"]
[684,"ستمائة وأربع وثمانون"]
[685,"ستمائة وخمس وثمانون"]
[686,"ستمائة وست وثمانون"]
[687,"ستمائة وسبع وثمانون"]
[688,"ستمائة وثمان وثمانون"]
[689,"ستمائة وتسع وثمانون"]
[690,"ستمائة وتسعون"]
[691,"ستمائة وإحدى وتسعون"]
[692,"ستمائة واثنان وتسعون"]
[693,"ستمائة وثلاث وتسعون"]
[694,"ستمائة وأربع وتسعون"]
[695,"ستمائة وخمس وتسعون"]
[696,"ستمائة وست وتسعون"]
[697,"ستمائة وسبع وتسعون"]
[698,"ستمائة وثمان وتسعون"]
[699,"ستمائة وتسع وتسعون"]
[700,"سبعمائة "]
[701,"سبعمائة  وواحد"]
[702,"سبعمائة واثنين"]
[703,"سبعمائة وثلاثة"]
[704,"سبعمائة وأربعة"]
[705,"سبعمائة وخمسة"]
[706,{"$f":"Orde_too_large(A706)","v":"سبعمائة وستة"}]
[707,"سبعمائة وسبعة"]
[708,"سبعمائة وثمانية"]
[709,"سبعمائة وتسعة"]
[710,"سبعمائة وعشرة"]
[711,"سبعمائة وإحدى عشر"]
[712,"سبعمائة واثنان عشر"]
[713,"سبعمائة وثلاث عشر"]
[714,"سبعمائة وأربع عشر"]
[715,"سبعمائة وخمس عشر"]
[716,"سبعمائة وست عشر"]
[717,"سبعمائة وسبع عشر"]
[718,"سبعمائة وثمان عشر"]
[719,"سبعمائة وتسع عشر"]
[720,"سبعمائة وعشرون"]
[721,"سبعمائة وإحدى وعشرون"]
[722,"سبعمائة واثنان وعشرون"]
[723,"سبعمائة وثلاث وعشرون"]
[724,"سبعمائة وأربع وعشرون"]
[725,"سبعمائة وخمس وعشرون"]
[726,"سبعمائة وست وعشرون"]
[727,"سبعمائة وسبع وعشرون"]
[728,"سبعمائة وثمان وعشرون"]
[729,"سبعمائة وتسع وعشرون"]
[730,"سبعمائة وثلاثون"]
[731,"سبعمائة وإحدى وثلاثون"]
[732,"سبعمائة واثنان وثلاثون"]
[733,"سبعمائة وثلاث وثلاثون"]
[734,"سبعمائة وأربع وثلاثون"]
[735,"سبعمائة وخمس وثلاثون"]
[736,"سبعمائة وست وثلاثون"]
[737,"سبعمائة وسبع وثلاثون"]
[738,"سبعمائة وثمان وثلاثون"]
[739,"سبعمائة وتسع وثلاثون"]
[740,"سبعمائة وأربعون"]
[741,"سبعمائة وإحدى وأربعون"]
[742,"سبعمائة واثنان وأربعون"]
[743,"سبعمائة وثلاث وأربعون"]
[744,"سبعمائة وأربع وأربعون"]
[745,"سبعمائة وخمس وأربعون"]
[746,"سبعمائة وست وأربعون"]
[747,"سبعمائة وسبع وأربعون"]
[748,"سبعمائة وثمان وأربعون"]
[749,"سبعمائة وتسع وأربعون"]
[750,"سبعمائة وخمسون"]
[751,"سبعمائة وإحدى وخمسون"]
[752,"سبعمائة واثنان وخمسون"]
[753,"سبعمائة وثلاث وخمسون"]
[754,"سبعمائة وأربع وخمسون"]
[755,"سبعمائة وخمس وخمسون"]
[756,"سبعمائة وست وخمسون"]
[757,"سبعمائة وسبع وخمسون"]
[758,"سبعمائة وثمان وخمسون"]
[759,"سبعمائة وتسع وخمسون"]
[760,"سبعمائة وستون"]
[761,"سبعمائة وإحدى وستون"]
[762,"سبعمائة واثنان وستون"]
[763,"سبعمائة وثلاث وستون"]
[764,"سبعمائة وأربع وستون"]
[765,"سبعمائة وخمس وستون"]
[766,"سبعمائة وست وستون"]
[767,"سبعمائة وسبع وستون"]
[768,"سبعمائة وثمان وستون"]
[769,"سبعمائة وتسع وستون"]
[770,{"$f":"Orde_too_large(A770)","v":"سبعمائة وسبعون"}]
[771,"سبعمائة وإحدى وسبعون"]
[772,"سبعمائة واثنان وسبعون"]
[773,"سبعمائة وثلاث وسبعون"]
[774,"سبعمائة وأربع وسبعون"]
[775,"سبعمائة وخمس وسبعون"]
[776,"سبعمائة وست وسبعون"]
[777,"سبعمائة وسبع وسبعون"]
[778,"سبعمائة وثمان وسبعون"]
[779,"سبعمائة وتسع وسبعون"]
[780,"سبعمائة وثمانون"]
[781,"سبعمائة وإحدى وثمانون"]
[782,"سبعمائة واثنان وثمانون"]
[783,"سبعمائة وثلاث وثمانون"]
[784,"سبعمائة وأربع وثمانون"]
[785,"سبعمائة وخمس وثمانون"]
[786,"سبعمائة وست وثمانون"]
[787,"سبعمائة وسبع وثمانون"]
[788,"سبعمائة وثمان وثمانون"]
[789,"سبعمائة وتسع وثمانون"]
[790,"سبعمائة وتسعون"]
[791,"سبعمائة وإحدى وتسعون"]
[792,"سبعمائة واثنان وتسعون"]
[793,"سبعمائة وثلاث وتسعون"]
[794,"سبعمائة وأربع وتسعون"]
[795,"سبعمائة وخمس وتسعون"]
[796,"سبعمائة وست وتسعون"]
[797,"سبعمائة وسبع وتسعون"]
[798,"سبعمائة وثمان وتسعون"]
[799,"سبعمائة وتسع وتسعون"]
[800,"ثمانمائة "]
[801,"ثمانمائة  وواحد"]
[802,"ثمانمائة واثنين"]
[803,"ثمانمائة وثلاثة"]
[804,"ثمانمائة وأربعة"]
[805,"ثمانمائة وخمسة"]
[806,"ثمانمائة وستة"]
[807,"ثمانمائة وسبعة"]
[808,"ثمانمائة وثمانية"]
[809,"ثمانمائة وتسعة"]
[810,"ثمانمائة وعشرة"]
[811,"ثمانمائة وإحدى عشر"]
[812,"ثمانمائة واثنان عشر"]
[813,"ثمانمائة وثلاث عشر"]
[814,"ثمانمائة وأربع عشر"]
[815,"ثمانمائة وخمس عشر"]
[816,"ثمانمائة وست عشر"]
[817,"ثمانمائة وسبع عشر"]
[818,"ثمانمائة وثمان عشر"]
[819,"ثمانمائة وتسع عشر"]
[820,"ثمانمائة وعشرون"]
[821,"ثمانمائة وإحدى وعشرون"]
[822,"ثمانمائة واثنان وعشرون"]
[823,"ثمانمائة وثلاث وعشرون"]
[824,"ثمانمائة وأربع وعشرون"]
[825,"ثمانمائة وخمس وعشرون"]
[826,"ثمانمائة وست وعشرون"]
[827,"ثمانمائة وسبع وعشرون"]
[828,"ثمانمائة وثمان وعشرون"]
[829,"ثمانمائة وتسع وعشرون"]
[830,"ثمانمائة وثلاثون"]
[831,"ثمانمائة وإحدى وثلاثون"]
[832,"ثمانمائة واثنان وثلاثون"]
[833,"ثمانمائة وثلاث وثلاثون"]
[834,{"$f":"Orde_too_large(A834)","v":"ثمانمائة وأربع وثلاثون"}]
[835,"ثمانمائة وخمس وثلاثون"]
[836,"ثمانمائة وست وثلاثون"]
[837,"ثمانمائة وسبع وثلاثون"]
[838,"ثمانمائة وثمان وثلاثون"]
[839,"ثمانمائة وتسع وثلاثون"]
[840,"ثمانمائة وأربعون"]
[841,"ثمانمائة وإحدى وأربعون"]
[842,"ثمانمائة واثنان وأربعون"]
[843,"ثمانمائة وثلاث وأربعون"]
[844,"ثمانمائة وأربع وأربعون"]
[845,"ثمانمائة وخمس وأربعون"]
[846,"ثمانمائة وست وأربعون"]
[847,"ثمانمائة وسبع وأربعون"]
[848,"ثمانمائة وثمان وأربعون"]
[849,"ثمانمائة وتسع وأربعون"]
[850,"ثمانمائة وخمسون"]
[851,"ثمانمائة وإحدى وخمسون"]
[852,"ثمانمائة واثنان وخمسون"]
[853,"ثمانمائة وثلاث وخمسون"]
[854,"ثمانمائة وأربع وخمسون"]
[855,"ثمانمائة وخمس وخمسون"]
[856,"ثمانمائة وست وخمسون"]
[857,"ثمانمائة وسبع وخمسون"]
[858,"ثمانمائة وثمان وخمسون"]
[859,"ثمانمائة وتسع وخمسون"]
[860,"ثمانمائة وستون"]
[861,"ثمانمائة وإحدى وستون"]
[862,"ثمانمائة واثنان وستون"]
[863,"ثمانمائة وثلاث وستون"]
[864,"ثمانمائة وأربع وستون"]
[865,"ثمانمائة وخمس وستون"]
[866,"ثمانمائة وست وستون"]
[867,"ثمانمائة وسبع وستون"]
[868,"ثمانمائة وثمان وستون"]
[869,"ثمانمائة وتسع وستون"]
[870,"ثمانمائة وسبعون"]
[871,"ثمانمائة وإحدى وسبعون"]
[872,"ثمانمائة واثنان وسبعون"]
[873,"ثمانمائة وثلاث وسبعون"]
[874,"ثمانمائة وأربع وسبعون"]
[875,"ثمانمائة وخمس وسبعون"]
[876,"ثمانمائة وست وسبعون"]
[877,"ثمانمائة وسبع وسبعون"]
[878,"ثمانمائة وثمان وسبعون"]
[879,"ثمانمائة وتسع وسبعون"]
[880,"ثمانمائة وثمانون"]
[881,"ثمانمائة وإحدى وثمانون"]
[882,"ثمانمائة واثنان وثمانون"]
[883,"ثمانمائة وثلاث وثمانون"]
[884,"ثمانمائة وأربع وثمانون"]
[885,"ثمانمائة وخمس وثمانون"]
[886,"ثمانمائة وست وثمانون"]
[887,"ثمانمائة وسبع وثمانون"]
[888,"ثمانمائة وثمان وثمانون"]
[889,"ثمانمائة وتسع وثمانون"]
[890,"ثمانمائة وتسعون"]
[891,"ثمانمائة وإحدى وتسعون"]
[892,"ثمانمائة واثنان وتسعون"]
[893,"ثمانمائة وثلاث وتسعون"]
[894,"ثمانمائة وأربع وتسعون"]
[895,"ثمانمائة وخمس وتسعون"]
[896,"ثمانمائة وست وتسعون"]
[897,"ثمانمائة وسبع وتسعون"]
[898,{"$f":"Orde_too_large(A898)","v":"ثمانمائة وثمان وتسعون"}]
[899,"ثمانمائة وتسع وتسعون"]
[900,"تسعمائة "]
[901,"تسعمائة  وواحد"]
[902,"تسعمائة واثنين"]
[903,"تسعمائة وثلاثة"]
[904,"تسعمائة وأربعة"]
[905,"تسعمائة وخمسة"]
[906,"تسعمائة وستة"]
[907,"تسعمائة وسبعة"]
[908,"تسعمائة وثمانية"]
[909,"تسعمائة وتسعة"]
[910,"تسعمائة وعشرة"]
[911,"تسعمائة وإحدى عشر"]
[912,"تسعمائة واثنان عشر"]
[913,"تسعمائة وثلاث عشر"]
[914,"تسعمائة وأربع عشر"]
[915,"تسعمائة وخمس عشر"]
[916,"تسعمائة وست عشر"]
[917,"تسعمائة وسبع عشر"]
[918,"تسعمائة وثمان عشر"]
[919,"تسعمائة وتسع عشر"]
[920,"تسعمائة وعشرون"]
[921,"تسعمائة وإحدى وعشرون"]
[922,"تسعمائة واثنان وعشرون"]
[923,"تسعمائة وثلاث وعشرون"]
[924,"تسعمائة وأربع وعشرون"]
[925,"تسعمائة وخمس وعشرون"]
[926,"تسعمائة وست وعشرون"]
[927,"تسعمائة وسبع وعشرون"]
[928,"تسعمائة وثمان وعشرون"]
[929,"تسعمائة وتسع وعشرون"]
[930,"تسعمائة وثلاثون"]
[931,"تسعمائة وإحدى وثلاثون"]
[932,"تسعمائة واثنان وثلاثون"]
[933,"تسعمائة وثلاث وثلاثون"]
[934,"تسعمائة وأربع وثلاثون"]
[935,"تسعمائة وخمس وثلاثون"]
[936,"تسعمائة وست وثلاثون"]
[937,"تسعمائة وسبع وثلاثون"]
[938,"تسعمائة وثمان وثلاثون"]
[939,"تسعمائة وتسع وثلاثون"]
[940,"تسعمائة وأربعون"]
[941,"تسعمائة وإحدى وأربعون"]
[942,"تسعمائة واثنان وأربعون"]
[943,"تسعمائة وثلاث وأربعون"]
[944,"تسعمائة وأربع وأربعون"]
[945,"تسعمائة وخمس وأربعون"]
[946,"تسعمائة وست وأربعون"]
[947,"تسعمائة وسبع وأربعون"]
[948,"تسعمائة وثمان وأربعون"]
[949,"تسعمائة وتسع وأربعون"]
[950,"تسعمائة وخمسون"]
[951,"تسعمائة وإحدى وخمسون"]
[952,"تسعمائة واثنان وخمسون"]
[953,"تسعمائة وثلاث وخمسون"]
[954,"تسعمائة وأربع وخمسون"]
[955,"تسعمائة وخمس وخمسون"]
[956,"تسعمائة وست وخمسون"]
[957,"تسعمائة وسبع وخمسون"]
[958,"تسعمائة وثمان وخمسون"]
[959,"تسعمائة وتسع وخمسون"]
[960,"تسعمائة وستون"]
[961,"تسعمائة وإحدى وستون"]
[962,{"$f":"Orde_too_large(A962)","v":"تسعمائة واثنان وستون"}]
[963,"تسعمائة وثلاث وستون"]
[964,"تسعمائة وأربع وستون"]
[965,"تسعمائة وخمس وستون"]
[966,"تسعمائة وست وستون"]
[967,"تسعمائة وسبع وستون"]
[968,"تسعمائة وثمان وستون"]
[969,"تسعمائة وتسع وستون"]
[970,"تسعمائة وسبعون"]
[971,"تسعمائة وإحدى وسبعون"]
[972,"تسعمائة واثنان وسبعون"]
[973,"تسعمائة وثلاث وسبعون"]
[974,"تسعمائة وأربع وسبعون"]
[975,"تسعمائة وخمس وسبعون"]
[976,"تسعمائة وست وسبعون"]
[977,"تسعمائة وسبع وسبعون"]
[978,"تسعمائة وثمان وسبعون"]
[979,"تسعمائة وتسع وسبعون"]
[980,"تسعمائة وثمانون"]
[981,"تسعمائة وإحدى وثمانون"]
[982,"تسعمائة واثنان وثمانون"]
[983,"تسعمائة وثلاث وثمانون"]
[984,"تسعمائة وأربع وثمانون"]
[985,"تسعمائة وخمس وثمانون"]
[986,"تسعمائة وست وثمانون"]
[987,"تسعمائة وسبع وثمانون"]
[988,"تسعمائة وثمان وثمانون"]
[989,"تسعمائة وتسع وثمانون"]
[990,"تسعمائة وتسعون"]
[991,"تسعمائة وإحدى وتسعون"]
[992,"تسعمائة واثنان وتسعون"]
[993,"تسعمائة وثلاث وتسعون"]
[994,"تسعمائة وأربع وتسعون"]
[995,"تسعمائة وخمس وتسعون"]
[996,"تسعمائة وست وتسعون"]
[997,"تسعمائة وسبع وتسعون"]
[998,"تسعمائة وثمان وتسعون"]
[999,"تسعمائة وتسع وتسعون"]
[1000,"الألف"]
[1001,"ألف و واحد"]

{"sheet":"Sheet2","index":1,"n_rows":0,"n_cols":0,"rows_kept":0,"cut":false,"hidden":false,"merged":[]}

{"sheet":"Sheet3","index":2,"n_rows":0,"n_cols":0,"rows_kept":0,"cut":false,"hidden":false,"merged":[]}